[Event "EYCC Open-U14 2019"]
[Site "Bratislava"]
[Date "2019.08.06"]
[Round "5.48"]
[White "Jares, Michal"]
[Black "Priseajniuc, Andrei"]
[Result "1-0"]
[ECO "D02"]
[WhiteElo "1974"]
[BlackElo "1789"]
[Annotator "NA"]
[PlyCount "59"]
[EventDate "2019.08.02"]
[EventType "swiss"]
[EventCountry "SVK"]
[SourceTitle "playchess.com"]
[Source "ChessBase"]
[SourceQuality "1"]
[TimeControl "40/5400+30:1800+30"]

1. d4 {[%emt 0:00:00]} d5 {[%emt 0:00:00]} 2. Nf3 {[%emt 0:00:00]} Nf6 {[%emt 0:00:00]} 3. g3 {[%emt 0:00:00]} e6 {[%emt 0:00:23]} 4. Bg2 {[%emt 0:00:13]} b5 {[%emt 0:01:23]} 5. O-O {[%emt 0:00:42]} Bb7 {[%emt 0:00:20]} 6. Ne5 {[%emt 0:01:07]} c5 {[%emt 0:03:13]} 7. a4 {[%emt 0:01:01]} b4 {[%emt 0:00:35]} 8. c4 {[%emt 0:00:43]} Nbd7 {[%emt 0:06:06]} 9. a5 {[%emt 0:15:03]} a6 {[%emt 0:03:19]} 10. Bg5 {[%emt 0:08:25]} Be7 {[%emt 0:05:47]} 11. cxd5 {[%emt 0:08:07]} Nxd5 {[%emt 0:07:23]} 12. Bxe7 {[%emt 0:03:36]} Qxe7 {[%emt 0:02:15]} 13. Nxd7 {[%emt 0:07:14]} Qxd7 {[%emt 0:03:11]} 14. dxc5 {[%emt 0:01:33]} Rc8 {[%emt 0:03:33]} 15. e4 {[%emt 0:02:45]} Nf6 {[%emt 0:00:19]} 16. Qxd7+ {[%emt 0:01:30]} Nxd7 {[%emt 0:01:13]} 17. Ra4 {[%emt 0:03:57]} b3 {[%emt 0:06:07]} 18. Rc4 {[%emt 0:00:28]} O-O {[%emt 0:01:19]} 19. Rfc1 {[%emt 0:01:35]} Rfd8 {[%emt 0:02:18]} 20. f4 {[%emt 0:09:21]} Bc6 {[%emt 0:05:32]} 21. R4c3 {[%emt 0:05:53]} Ba4 {[%emt 0:01:20]} 22. c6 {[%emt 0:06:45]} Nf6 {[%emt 0:00:46]} 23. e5 {[%emt 0:04:24]} Nd5 {[%emt 0:01:12]} 24. c7 {[%emt 0:02:04]} Rd7 {[%emt 0:02:42]} 25. Bxd5 {[%emt 0:00:24]} Rxd5 {[%emt 0:01:28]} 26. Rc5 {[%emt 0:02:21]} Rd4 {[%emt 0:17:19]} 27. R5c4 {[%emt 0:01:26]} Rxc4 {[%emt 0:00:49]} 28. Rxc4 {[%emt 0:00:03]} Bb5 {[%emt 0:00:07]} 29. Rd4 {[%emt 0:01:22]} Kf8 {[%emt 0:03:06]} 30. Rd8+ {[%emt 0:00:08] Rb8} 1-0

[Event "EYCC Open-U14 2019"]
[Site "Bratislava"]
[Date "2019.08.07"]
[Round "6.1"]
[White "Kostolansky, Sebastian Lukas"]
[Black "Tsvetkov, Andrey"]
[Result "1/2-1/2"]
[ECO "B51"]
[WhiteElo "2406"]
[BlackElo "2324"]
[Annotator "NA"]
[PlyCount "42"]
[EventDate "2019.08.02"]
[EventType "swiss"]
[EventCountry "SVK"]
[SourceTitle "playchess.com"]
[Source "ChessBase"]
[SourceQuality "1"]
[TimeControl "40/5400+30:1800+30"]

1. e4 {[%emt 0:00:00]} c5 {[%emt 0:00:00]} 2. Nf3 {[%emt 0:00:08]} d6 {[%emt 0:00:00]} 3. Bb5+ {[%emt 0:03:50]} Nd7 {[%emt 0:00:00]} 4. c3 {[%emt 0:00:06]} Ngf6 {[%emt 0:05:57]} 5. Qe2 {[%emt 0:00:08]} a6 {[%emt 0:01:41]} 6. Ba4 {[%emt 0:00:12]} b5 {[%emt 0:01:02]} 7. Bc2 {[%emt 0:00:09]} Bb7 {[%emt 0:00:13]} 8. O-O {[%emt 0:01:44]} e6 {[%emt 0:06:10]} 9. d4 {[%emt 0:02:57]} Be7 {[%emt 0:01:24]} 10. Bg5 {[%emt 0:14:33]} O-O {[%emt 0:06:04]} 11. Nbd2 {[%emt 0:01:13]} cxd4 {[%emt 0:16:33]} 12. cxd4 {[%emt 0:02:52]} Rc8 {[%emt 0:02:44]} 13. Bd3 {[%emt 0:10:08]} Nb6 {[%emt 0:04:56]} 14. Rfe1 {[%emt 0:07:14]} Re8 {[%emt 0:09:24]} 15. Rad1 {[%emt 0:03:08]} Qc7 {[%emt 0:04:03]} 16. e5 {[%emt 0:05:36]} dxe5 {[%emt 0:04:10]} 17. dxe5 {[%emt 0:04:35]} Nfd7 {[%emt 0:00:21]} 18. Bxe7 {[%emt 0:09:28]} Rxe7 {[%emt 0:00:02]} 19. Qe3 {[%emt 0:03:08]} h6 {[%emt 0:03:23]} 20. Ne4 {[%emt 0:04:56]} Bxe4 {[%emt 0:01:04]} 21. Qxe4 {[%emt 0:00:19]} Nf8 {[%emt 0:00:12]} 1/2-1/2

[Event "EYCC Open-U14 2019"]
[Site "Bratislava"]
[Date "2019.08.07"]
[Round "6.2"]
[White "Stukan, Martin"]
[Black "Popov, Konstantin"]
[Result "0-1"]
[ECO "B19"]
[WhiteElo "2303"]
[BlackElo "2367"]
[Annotator "NA"]
[PlyCount "90"]
[EventDate "2019.08.02"]
[EventType "swiss"]
[EventCountry "SVK"]
[SourceTitle "playchess.com"]
[Source "ChessBase"]
[SourceQuality "1"]
[TimeControl "40/5400+30:1800+30"]

1. e4 {[%emt 0:00:00]} c6 {[%emt 0:00:01]} 2. d4 {[%emt 0:00:05]} d5 {[%emt 0:00:16]} 3. Nc3 {[%emt 0:00:15]} dxe4 {[%emt 0:00:21]} 4. Nxe4 {[%emt 0:00:05]} Bf5 {[%emt 0:00:12]} 5. Ng3 {[%emt 0:00:10]} Bg6 {[%emt 0:00:23]} 6. h4 {[%emt 0:00:03]} h6 {[%emt 0:00:10]} 7. Nf3 {[%emt 0:00:11]} Nd7 {[%emt 0:00:18]} 8. h5 {[%emt 0:00:06]} Bh7 {[%emt 0:00:07]} 9. Bd3 {[%emt 0:00:25]} Bxd3 {[%emt 0:00:23]} 10. Qxd3 {[%emt 0:00:03]} e6 {[%emt 0:00:12]} 11. Bf4 {[%emt 0:00:13]} Qa5+ {[%emt 0:01:34]} 12. Bd2 {[%emt 0:00:14]} Bb4 {[%emt 0:00:24]} 13. c3 {[%emt 0:00:10]} Be7 {[%emt 0:00:53]} 14. c4 {[%emt 0:00:02]} Qc7 {[%emt 0:00:10]} 15. d5 {[%emt 0:00:12]} cxd5 {[%emt 0:00:16]} 16. cxd5 {[%emt 0:00:04]} Qd6 {[%emt 0:01:46]} 17. Qb5 {[%emt 0:00:23]} Ngf6 {[%emt 0:07:21]} 18. dxe6 {[%emt 0:04:47]} Qxe6+ {[%emt 0:20:36]} 19. Kf1 {[%emt 0:02:15]} a6 {[%emt 0:01:33]} 20. Qxb7 {[%emt 0:34:49]} O-O {[%emt 0:37:43]} 21. Qb3 {[%emt 0:10:32]} Qxb3 {[%emt 0:03:27]} 22. axb3 {[%emt 0:01:24]} Rfb8 {[%emt 0:00:11]} 23. Nd4 {[%emt 0:02:12]} Bc5 {[%emt 0:01:28]} 24. Ngf5 {[%emt 0:02:12]} Ne4 {[%emt 0:01:22]} 25. Bc3 {[%emt 0:04:30]} Bxd4 {[%emt 0:07:41]} 26. Nxd4 {[%emt 0:05:54]} Ndc5 {[%emt 0:00:52]} 27. b4 {[%emt 0:01:06]} Nd3 {[%emt 0:02:57]} 28. Rh4 {[%emt 0:01:42]} Re8 {[%emt 0:03:51]} 29. f3 {[%emt 0:02:44]} Nxc3 {[%emt 0:02:41]} 30. bxc3 {[%emt 0:00:19]} a5 {[%emt 0:00:32]} 31. b5 {[%emt 0:04:19]} a4 {[%emt 0:02:28]} 32. Nc2 {[%emt 0:03:41]} Rac8 {[%emt 0:01:21]} 33. c4 {[%emt 0:09:43]} Nb2 {[%emt 0:00:32]} 34. Na3 {[%emt 0:02:24]} Re3 {[%emt 0:00:32]} 35. Ra2 {[%emt 0:01:30]} Rb3 {[%emt 0:00:51]} 36. Re4 {[%emt 0:02:00]} Kh7 {[%emt 0:01:14]} 37. Ke2 {[%emt 0:05:34]} Nd3 {[%emt 0:01:08]} 38. Ra1 {[%emt 0:01:12]} Nc5 39. Re7 {[%emt 0:00:59]} Rd8 {[%emt 0:00:40]} 40. Rc7 {[%emt 0:00:00]} Rb2+ {[%emt 0:00:00]} 41. Kf1 {[%emt 0:04:01]} Nb3 {[%emt 0:04:44]} 42. Re1 {[%emt 0:00:14]} Rdd2 {[%emt 0:00:39]} 43. Nb1 {[%emt 0:08:03]} Rf2+ {[%emt 0:00:40]} 44. Kg1 {[%emt 0:00:02]} Rxg2+ {[%emt 0:00:10]} 45. Kh1 {[%emt 0:00:03]} a3 {[%emt 0:04:08]} 0-1

[Event "EYCC Open-U14 2019"]
[Site "Bratislava"]
[Date "2019.08.07"]
[Round "6.3"]
[White "Borhy, Marcell"]
[Black "Weihrauch, Jakob"]
[Result "1/2-1/2"]
[ECO "D76"]
[WhiteElo "2382"]
[BlackElo "2201"]
[Annotator "NA"]
[PlyCount "71"]
[EventDate "2019.08.02"]
[EventType "swiss"]
[EventCountry "SVK"]
[SourceTitle "playchess.com"]
[Source "ChessBase"]
[SourceQuality "1"]
[TimeControl "40/5400+30:1800+30"]

1. g3 {[%emt 0:00:02]} Nf6 {[%emt 0:00:00]} 2. Bg2 {[%emt 0:00:16]} g6 {[%emt 0:00:09]} 3. Nf3 {[%emt 0:00:20]} Bg7 {[%emt 0:00:31]} 4. c4 {[%emt 0:00:06]} O-O {[%emt 0:00:22]} 5. O-O {[%emt 0:00:29]} d5 {[%emt 0:01:42]} 6. cxd5 {[%emt 0:03:21]} Nxd5 {[%emt 0:00:02]} 7. d4 {[%emt 0:00:10]} Nb6 {[%emt 0:01:23]} 8. Nc3 {[%emt 0:05:32]} Nc6 {[%emt 0:00:26]} 9. d5 {[%emt 0:06:58]} Na5 {[%emt 0:01:24]} 10. Qc2 {[%emt 0:00:16]} c6 {[%emt 0:08:49]} 11. dxc6 {[%emt 0:05:43]} Nxc6 {[%emt 0:00:36]} 12. Rd1 {[%emt 0:00:24]} Qc7 {[%emt 0:05:01]} 13. Nb5 {[%emt 0:06:01]} Qb8 {[%emt 0:00:03]} 14. Bf4 {[%emt 0:02:21]} e5 {[%emt 0:01:18]} 15. Be3 {[%emt 0:00:17]} Bf5 {[%emt 0:01:37]} 16. Qc1 {[%emt 0:02:46]} Rc8 {[%emt 0:02:26]} 17. Bxb6 {[%emt 0:02:49]} axb6 {[%emt 0:00:41]} 18. Qe3 {[%emt 0:03:07]} Nb4 {[%emt 0:14:41]} 19. Ne1 {[%emt 0:04:57]} Nc2 {[%emt 0:08:14]} 20. Nxc2 {[%emt 0:00:20]} Rxc2 {[%emt 0:00:15]} 21. Qb3 {[%emt 0:04:07]} Rxe2 {[%emt 0:02:27]} 22. Nc3 {[%emt 0:33:11]} Bc2 {[%emt 0:04:20]} 23. Qxb6 {[%emt 0:01:01]} Bxd1 {[%emt 0:00:08]} 24. Rxd1 {[%emt 0:00:04]} Rc2 {[%emt 0:00:55]} 25. Qb3 {[%emt 0:05:49]} Rxc3 {[%emt 0:00:44]} 26. bxc3 {[%emt 0:00:06]} Qc7 {[%emt 0:07:35]} 27. Bxb7 {[%emt 0:03:19]} Rb8 {[%emt 0:00:02]} 28. Rb1 {[%emt 0:00:01]} e4 {[%emt 0:00:23]} 29. c4 {[%emt 0:00:54]} Bd4 {[%emt 0:01:49]} 30. Qb5 {[%emt 0:00:35]} Qe7 {[%emt 0:08:29]} 31. Qd5 {[%emt 0:01:22]} Qf6 {[%emt 0:01:09]} 32. Qxe4 {[%emt 0:01:42]} Qxf2+ {[%emt 0:00:30]} 33. Kh1 {[%emt 0:00:01]} Qxa2 {[%emt 0:00:29]} 34. Rd1 {[%emt 0:00:48]} Qb3 {[%emt 0:04:37]} 35. Rxd4 {[%emt 0:02:43]} Qxb7 {[%emt 0:00:05]} 36. Qxb7 {[%emt 0:00:26]} 1/2-1/2

[Event "EYCC Open-U14 2019"]
[Site "Bratislava"]
[Date "2019.08.07"]
[Round "6.4"]
[White "Krastev, Alexander"]
[Black "Rozen, Eytan"]
[Result "1/2-1/2"]
[ECO "B11"]
[WhiteElo "2325"]
[BlackElo "2260"]
[Annotator "NA"]
[PlyCount "99"]
[EventDate "2019.08.02"]
[EventType "swiss"]
[EventCountry "SVK"]
[SourceTitle "playchess.com"]
[Source "ChessBase"]
[SourceQuality "1"]
[TimeControl "40/5400+30:1800+30"]

1. e4 {[%emt 0:00:00]} c6 {[%emt 0:01:14]} 2. Nc3 {[%emt 0:00:00]} d5 {[%emt 0:00:08]} 3. Nf3 {[%emt 0:00:00]} Bg4 {[%emt 0:03:09]} 4. h3 {[%emt 0:00:00]} Bxf3 {[%emt 0:01:00]} 5. Qxf3 {[%emt 0:00:00]} Nf6 {[%emt 0:00:31]} 6. e5 {[%emt 0:08:19]} Nfd7 {[%emt 0:00:02]} 7. d4 {[%emt 0:09:56]} e6 {[%emt 0:00:19]} 8. Be3 {[%emt 0:01:49]} c5 {[%emt 0:01:07]} 9. Qg3 {[%emt 0:01:05]} cxd4 {[%emt 0:07:25]} 10. Bxd4 {[%emt 0:00:06]} Nc6 {[%emt 0:00:29]} 11. O-O-O {[%emt 0:01:12]} Nxd4 {[%emt 0:05:30]} 12. Rxd4 {[%emt 0:00:05]} Qb6 {[%emt 0:04:15]} 13. Rd1 {[%emt 0:00:12]} O-O-O {[%emt 0:02:16]} 14. Bd3 {[%emt 0:02:17]} Bb4 {[%emt 0:10:03]} 15. Ne2 {[%emt 0:02:09]} g6 {[%emt 0:03:39]} 16. f4 {[%emt 0:02:41]} h5 {[%emt 0:03:49]} 17. c3 {[%emt 0:07:29]} Be7 {[%emt 0:03:36]} 18. h4 {[%emt 0:06:28]} Nb8 {[%emt 0:04:32]} 19. Nd4 {[%emt 0:14:17]} Nc6 {[%emt 0:03:54]} 20. Nc2 {[%emt 0:00:09]} Kb8 {[%emt 0:02:39]} 21. Kb1 {[%emt 0:01:03]} Na5 {[%emt 0:02:28]} 22. Qe1 {[%emt 0:05:04]} Rc8 {[%emt 0:02:29]} 23. g3 {[%emt 0:00:52]} Nc4 {[%emt 0:01:02]} 24. Bxc4 {[%emt 0:00:09]} Rxc4 {[%emt 0:00:02]} 25. Rd4 {[%emt 0:00:57]} Rhc8 {[%emt 0:03:31]} 26. Rxc4 {[%emt 0:02:16]} Rc7 27. Rc5 Rxc5 {[%emt 0:00:32]} 28. Qd1 Rc4 29. Qd2 {[%emt 0:04:03]} Qc7 {[%emt 0:03:05]} 30. Nd4 {[%emt 0:06:09]} Qb6 {[%emt 0:04:14]} 31. Rd1 {[%emt 0:11:04]} a6 {[%emt 0:00:53]} 32. Ka1 {[%emt 0:09:41]} Rc7 {[%emt 0:01:05]} 33. Qe2 {[%emt 0:01:09]} Bc5 {[%emt 0:00:50]} 34. Nb3 {[%emt 0:00:56]} Ka7 {[%emt 0:01:16]} 35. Qd3 {[%emt 0:02:49]} a5 {[%emt 0:01:11]} 36. Nxc5 {[%emt 0:01:20]} Qxc5 {[%emt 0:00:46]} 37. Qd4 {[%emt 0:00:05]} b6 {[%emt 0:02:16]} 38. Kb1 {[%emt 0:00:43]} Qb5 {[%emt 0:02:01]} 39. Qd3 {[%emt 0:00:17]} Qxd3+ {[%emt 0:02:36]} 40. Rxd3 {[%emt 0:00:05]} Rc4 {[%emt 0:00:34]} 41. Rd4 {[%emt 0:30:08]} Rxd4 {[%emt 0:30:53]} 42. cxd4 {[%emt 0:00:00]} Ka6 {[%emt 0:00:00]} 43. a4 {[%emt 0:00:00]} b5 {[%emt 0:00:00]} 44. b3 {[%emt 0:00:00]} bxa4 {[%emt 0:00:00]} 45. bxa4 {[%emt 0:00:00]} Kb7 {[%emt 0:00:00]} 46. Kc2 {[%emt 0:00:00]} Kc7 {[%emt 0:00:00]} 47. Kd3 {[%emt 0:00:00]} Kd7 {[%emt 0:00:00]} 48. Ke3 {[%emt 0:00:00]} Ke7 {[%emt 0:00:00]} 49. Kf3 {[%emt 0:00:00]} f5 {[%emt 0:00:00]} 50. Ke3 {[%emt 0:00:00]} 1/2-1/2

[Event "EYCC Open-U14 2019"]
[Site "Bratislava"]
[Date "2019.08.07"]
[Round "6.5"]
[White "Bochnicka, Vladimir"]
[Black "Makoveev, Ilya"]
[Result "0-1"]
[ECO "B90"]
[WhiteElo "2169"]
[BlackElo "2288"]
[Annotator "NA"]
[PlyCount "112"]
[EventDate "2019.08.02"]
[EventType "swiss"]
[EventCountry "SVK"]
[SourceTitle "playchess.com"]
[Source "ChessBase"]
[SourceQuality "1"]
[TimeControl "40/5400+30:1800+30"]

1. e4 {[%emt 0:00:00]} c5 {[%emt 0:00:00]} 2. Nf3 {[%emt 0:00:00]} d6 {[%emt 0:00:00]} 3. d4 {[%emt 0:00:00]} cxd4 {[%emt 0:00:20]} 4. Nxd4 {[%emt 0:00:00]} Nf6 {[%emt 0:00:34]} 5. Nc3 {[%emt 0:00:00]} a6 {[%emt 0:00:06]} 6. f3 {[%emt 0:00:33]} e5 {[%emt 0:00:30]} 7. Nb3 {[%emt 0:00:09]} Be7 {[%emt 0:00:57]} 8. Be3 {[%emt 0:00:17]} Be6 {[%emt 0:00:13]} 9. Qd2 {[%emt 0:00:33]} O-O {[%emt 0:00:50]} 10. O-O-O {[%emt 0:00:43]} Nbd7 {[%emt 0:00:40]} 11. g4 {[%emt 0:00:43]} b5 {[%emt 0:00:30]} 12. g5 {[%emt 0:01:02]} b4 {[%emt 0:02:25]} 13. gxf6 {[%emt 0:00:19]} bxc3 {[%emt 0:00:07]} 14. Qxc3 {[%emt 0:00:07]} Nxf6 {[%emt 0:00:08]} 15. Na5 {[%emt 0:01:27]} Rc8 {[%emt 0:01:10]} 16. Nc6 {[%emt 0:01:24]} Qd7 {[%emt 0:00:10]} 17. Nxe7+ {[%emt 0:00:07]} Qxe7 {[%emt 0:00:02]} 18. Qa5 {[%emt 0:00:21]} Rc6 {[%emt 0:00:18]} 19. Rg1 {[%emt 0:04:55]} Rfc8 {[%emt 0:06:30]} 20. Rg2 {[%emt 0:03:56]} Nh5 {[%emt 0:09:15]} 21. Kb1 {[%emt 0:17:51]} Qf6 {[%emt 0:09:33]} 22. Rf2 {[%emt 0:23:30]} h6 {[%emt 0:04:10]} 23. Bd3 {[%emt 0:07:58]} Nf4 {[%emt 0:02:42]} 24. Qd2 {[%emt 0:05:09]} Nxd3 {[%emt 0:12:57]} 25. Qxd3 {[%emt 0:01:42]} d5 {[%emt 0:00:25]} 26. c3 {[%emt 0:06:15]} Rc4 {[%emt 0:12:09]} 27. Qd2 {[%emt 0:06:59]} dxe4 {[%emt 0:05:48]} 28. f4 {[%emt 0:03:38]} exf4 {[%emt 0:15:16]} 29. Rxf4 {[%emt 0:01:02]} Qe7 {[%emt 0:01:55]} 30. Bd4 {[%emt 0:03:05]} Ra4 {[%emt 0:08:54]} 31. b3 {[%emt 0:02:07]} Ra5 {[%emt 0:00:50]} 32. h4 {[%emt 0:02:35]} Rb8 {[%emt 0:03:49]} 33. c4 {[%emt 0:03:12]} Rf5 {[%emt 0:02:13]} 34. Rxf5 {[%emt 0:03:04]} Bxf5 {[%emt 0:00:21]} 35. Qf4 {[%emt 0:00:12]} e3+ {[%emt 0:01:12]} 36. Qxf5 {[%emt 0:00:13]} e2 {[%emt 0:00:01]} 37. Re1 {[%emt 0:00:16]} Rd8 {[%emt 0:00:36]} 38. Qg4 {[%emt 0:01:15]} f5 {[%emt 0:00:12]} 39. Qf4 {[%emt 0:02:17]} g5 {[%emt 0:00:16]} 40. hxg5 {[%emt 0:00:00]} hxg5 {[%emt 0:00:00]} 41. Rxe2 {[%emt 0:17:09]} Rxd4 {[%emt 0:12:20]} 42. Qb8+ {[%emt 0:04:55]} Rd8 {[%emt 0:00:16]} 43. Rxe7 {[%emt 0:00:09]} Rxb8 {[%emt 0:00:01]} 44. Kc2 {[%emt 0:01:27]} g4 {[%emt 0:07:01]} 45. Re5 {[%emt 0:06:16]} Rf8 {[%emt 0:00:24]} 46. Kd3 {[%emt 0:01:12]} Kg7 {[%emt 0:00:52]} 47. Ke3 {[%emt 0:01:01]} f4+ {[%emt 0:00:43]} 48. Kf2 {[%emt 0:00:08]} Kg6 {[%emt 0:02:13]} 49. b4 {[%emt 0:01:35]} f3 {[%emt 0:04:19]} 50. Re1 {[%emt 0:01:37]} Kf5 {[%emt 0:01:28]} 51. Kg3 {[%emt 0:00:27]} Rh8 {[%emt 0:00:09]} 52. Rd1 {[%emt 0:00:30]} Rh3+ {[%emt 0:00:08]} 53. Kf2 {[%emt 0:00:02]} Ke4 {[%emt 0:01:37]} 54. b5 {[%emt 0:00:42]} g3+ {[%emt 0:00:59]} 55. Kg1 {[%emt 0:00:08]} Rh2 {[%emt 0:01:11]} 56. bxa6 {[%emt 0:01:08]} f2+ {[%emt 0:00:06]} 0-1

[Event "EYCC Open-U14 2019"]
[Site "Bratislava"]
[Date "2019.08.07"]
[Round "6.6"]
[White "Mitusov, Semen"]
[Black "Vojta, Jakub"]
[Result "1-0"]
[ECO "B23"]
[WhiteElo "2199"]
[BlackElo "2238"]
[Annotator "NA"]
[PlyCount "73"]
[EventDate "2019.08.02"]
[EventType "swiss"]
[EventCountry "SVK"]
[SourceTitle "playchess.com"]
[Source "ChessBase"]
[SourceQuality "1"]
[TimeControl "40/5400+30:1800+30"]

1. e4 {[%emt 0:00:00]} c5 {[%emt 0:00:00]} 2. Nc3 {[%emt 0:00:22]} a6 {[%emt 0:00:00]} 3. g3 {[%emt 0:02:41]} b5 {[%emt 0:02:05]} 4. Bg2 {[%emt 0:01:39]} Bb7 {[%emt 0:00:22]} 5. d3 {[%emt 0:05:32]} e6 {[%emt 0:00:32]} 6. Nf3 {[%emt 0:03:23]} d5 {[%emt 0:04:49]} 7. exd5 {[%emt 0:03:57]} exd5 {[%emt 0:00:12]} 8. O-O {[%emt 0:00:27]} Bd6 {[%emt 0:05:30]} 9. d4 {[%emt 0:08:37]} c4 {[%emt 0:04:20]} 10. Re1+ {[%emt 0:03:45]} Ne7 {[%emt 0:00:14]} 11. Ng5 {[%emt 0:00:10]} O-O {[%emt 0:11:33]} 12. Qh5 {[%emt 0:14:38]} h6 {[%emt 0:00:11]} 13. Nf3 {[%emt 0:01:02]} b4 {[%emt 0:04:19]} 14. Nd1 {[%emt 0:05:49]} Bc8 {[%emt 0:03:41]} 15. Ne3 {[%emt 0:06:22]} Be6 {[%emt 0:01:42]} 16. Nh4 {[%emt 0:01:12]} Nd7 {[%emt 0:02:10]} 17. Ng4 {[%emt 0:06:14]} Bxg4 {[%emt 0:02:08]} 18. Qxg4 {[%emt 0:00:07]} Nf6 {[%emt 0:01:57]} 19. Qf3 {[%emt 0:02:04]} Ng6 {[%emt 0:12:27]} 20. Nf5 {[%emt 0:04:16]} Ne4 {[%emt 0:05:54]} 21. h4 {[%emt 0:01:50]} Ne7 {[%emt 0:02:50]} 22. Qg4 {[%emt 0:03:21]} Nxf5 {[%emt 0:03:30]} 23. Qxf5 {[%emt 0:00:10]} Nxg3 {[%emt 0:03:39]} 24. Qxd5 {[%emt 0:06:29]} Qf6 {[%emt 0:04:04]} 25. fxg3 {[%emt 0:02:06]} Bxg3 {[%emt 0:00:07]} 26. Re4 {[%emt 0:02:01]} Qf2+ {[%emt 0:01:36]} 27. Kh1 {[%emt 0:00:01]} Rae8 {[%emt 0:08:12]} 28. Bxh6 {[%emt 0:04:22]} Rxe4 {[%emt 0:10:13]} 29. Qxe4 {[%emt 0:00:12]} gxh6 {[%emt 0:01:51]} 30. Rf1 {[%emt 0:00:28]} Qd2 {[%emt 0:00:04]} 31. Qg4+ {[%emt 0:00:11]} Kh8 {[%emt 0:00:15]} 32. Qxg3 {[%emt 0:00:16]} Qxc2 {[%emt 0:00:11]} 33. Rf6 {[%emt 0:02:11]} Qc1+ {[%emt 0:00:31]} 34. Kh2 {[%emt 0:00:13]} c3 {[%emt 0:01:46]} 35. bxc3 {[%emt 0:00:52]} bxc3 {[%emt 0:00:07]} 36. Qe5 {[%emt 0:00:40]} Kg8 {[%emt 0:00:13]} 37. Rf3 {[%emt 0:00:55]} 1-0

[Event "EYCC Open-U14 2019"]
[Site "Bratislava"]
[Date "2019.08.07"]
[Round "6.7"]
[White "Dzida, Kamil"]
[Black "Antonica, Dragos-Andrei"]
[Result "0-1"]
[ECO "C16"]
[WhiteElo "1987"]
[BlackElo "2124"]
[Annotator "NA"]
[PlyCount "108"]
[EventDate "2019.08.02"]
[EventType "swiss"]
[EventCountry "SVK"]
[SourceTitle "playchess.com"]
[Source "ChessBase"]
[SourceQuality "1"]
[TimeControl "40/5400+30:1800+30"]

1. e4 {[%emt 0:00:00]} e6 {[%emt 0:00:00]} 2. d4 {[%emt 0:00:00]} d5 {[%emt 0:00:00]} 3. Nc3 {[%emt 0:00:00]} Bb4 {[%emt 0:00:00]} 4. e5 {[%emt 0:00:00]} b6 {[%emt 0:00:00]} 5. a3 {[%emt 0:08:40]} Bf8 {[%emt 0:00:03]} 6. f4 {[%emt 0:00:53]} Ne7 {[%emt 0:01:52]} 7. Nf3 {[%emt 0:03:38]} Qd7 {[%emt 0:00:24]} 8. a4 {[%emt 0:04:35]} Nbc6 {[%emt 0:10:06]} 9. Be3 {[%emt 0:14:16]} Nf5 {[%emt 0:03:18]} 10. Bf2 {[%emt 0:00:34]} h5 {[%emt 0:00:54]} 11. Bb5 {[%emt 0:06:02]} a6 {[%emt 0:03:50]} 12. Be2 {[%emt 0:00:41]} Bb7 {[%emt 0:03:01]} 13. Nh4 {[%emt 0:04:19]} Ncxd4 {[%emt 0:03:48]} 14. Nxf5 {[%emt 0:01:12]} Nxf5 {[%emt 0:00:19]} 15. Bxh5 {[%emt 0:01:56]} Bc5 {[%emt 0:14:37]} 16. Bg4 {[%emt 0:08:51]} Bxf2+ {[%emt 0:13:38]} 17. Kxf2 {[%emt 0:00:06]} O-O-O {[%emt 0:01:48]} 18. Qd3 {[%emt 0:06:23]} Rh4 {[%emt 0:11:41]} 19. h3 {[%emt 0:02:03]} d4 {[%emt 0:09:16]} 20. Ne2 {[%emt 0:20:17]} Ne3 {[%emt 0:07:10]} 21. Bf3 {[%emt 0:00:46]} Bxf3 {[%emt 0:01:09]} 22. gxf3 {[%emt 0:00:25]} Kb7 {[%emt 0:02:56]} 23. Qxd4 {[%emt 0:06:35]} Qxd4 {[%emt 0:02:11]} 24. Nxd4 {[%emt 0:00:05]} Rxd4 {[%emt 0:00:57]} 25. Kxe3 {[%emt 0:00:06]} Rdxf4 {[%emt 0:00:24]} 26. Rhg1 {[%emt 0:01:23]} Rf5 {[%emt 0:00:25]} 27. Rxg7 {[%emt 0:05:35]} Rxh3 {[%emt 0:00:18]} 28. Rf1 {[%emt 0:00:18]} Rxe5+ {[%emt 0:00:23]} 29. Kd3 {[%emt 0:00:42]} Rf5 {[%emt 0:00:22]} 30. Ke3 {[%emt 0:00:49]} Rh2 {[%emt 0:00:11]} 31. Rc1 {[%emt 0:00:12]} Kc6 {[%emt 0:04:08]} 32. Rg4 {[%emt 0:01:58]} Rc5 {[%emt 0:00:27]} 33. Kd3 {[%emt 0:00:25]} Rf2 {[%emt 0:00:43]} 34. Rf4 {[%emt 0:00:07]} f5 {[%emt 0:00:19]} 35. b4 {[%emt 0:02:40]} Rd5+ {[%emt 0:00:19]} 36. Kc3 {[%emt 0:00:45]} Kd6 {[%emt 0:00:13]} 37. Kb2 {[%emt 0:00:35]} c5 {[%emt 0:01:32]} 38. bxc5+ {[%emt 0:00:27]} bxc5 {[%emt 0:00:22]} 39. Re1 {[%emt 0:00:26]} Rd4 {[%emt 0:02:14]} 40. Rxd4+ {[%emt 0:00:00]} cxd4 {[%emt 0:00:00]} 41. Rd1 {[%emt 0:01:31]} Kd5 {[%emt 0:01:47]} 42. Rd3 {[%emt 0:00:41]} Kc4 {[%emt 0:01:10]} 43. Rb3 {[%emt 0:00:17]} e5 {[%emt 0:00:27]} 44. Rb6 {[%emt 0:01:11]} d3 {[%emt 0:00:59]} 45. Rc6+ {[%emt 0:00:17]} Kd5 {[%emt 0:00:13]} 46. Rxa6 {[%emt 0:00:17]} d2 {[%emt 0:00:38]} 47. Ra8 {[%emt 0:00:09]} Kc4 {[%emt 0:10:49]} 48. Rd8 {[%emt 0:00:22]} e4 {[%emt 0:00:09]} 49. fxe4 {[%emt 0:01:26]} fxe4 {[%emt 0:00:06]} 50. a5 {[%emt 0:00:03]} e3 {[%emt 0:03:04]} 51. a6 {[%emt 0:00:07]} Rf6 {[%emt 0:00:27]} 52. Rc8+ {[%emt 0:00:26]} Kb5 {[%emt 0:00:41]} 53. a7 {[%emt 0:01:24]} Ra6 {[%emt 0:00:25]} 54. c4+ {[%emt 0:01:21]} Kb4 {[%emt 0:00:22]} 0-1